fUSD/lending_fUSD_20240220
["ID","MTS","AMOUNT","RATE_DAILY","PERIOD"]
[314595491,1708439449774,-500.0,0.00048219,6]
[314595492,1708439449783,-500.0,0.00048219,6]
[314595493,1708439449792,-500.0,0.00048219,6]
[314595494,1708439449802,-150.0,0.00048221,7]
[314595495,1708439449811,-490.65541726,0.00048227,30]
[314595496,1708439449821,-152.0852822,0.00048229,30]
[314595497,1708439449830,-150.0,0.00048239,7]
[314595498,1708439449840,-177.11390007,0.00048241,30]
[314595499,1708439449849,-1447.38716041,0.00048242,2]
[314595500,1708439449858,-150.0,0.00048247,7]
[314595501,1708439449867,-150.0,0.00048259,7]
[314595502,1708439449879,-177.11390007,0.00048262,30]
[314595503,1708439449889,-905.22807506,0.00048273,24]
[314595504,1708439449901,-780.97,0.00048276,30]
[314595505,1708439449910,-780.97,0.00048276,30]
[314595506,1708439449920,-150.0,0.00048305,7]
[314595507,1708439449929,-158.4013139,0.00048315,30]
[314595508,1708439449938,-150.0,0.00048316,7]
[314595509,1708439449947,-150.0,0.00048333,7]
[314595510,1708439449957,-153.52419893,0.00048344,30]
[314595511,1708439449967,-152.43849287,0.00048351,30]
[314595512,1708439449977,-150.0,0.00048354,7]
[314595513,1708439449987,-177.0,0.00048356,90]
[314595514,1708439449997,-150.0,0.00048365,7]
[314595515,1708439450007,-155.58772599,0.00048377,30]
[314595516,1708439450018,-150.0,0.0004838,7]
[314595517,1708439450028,-150.0,0.00048382,7]
[314595518,1708439450038,-170.7107272,0.00048382,30]
[314595519,1708439450047,-150.0,0.00048386,7]
[314595520,1708439450057,-177.11390007,0.00048396,30]
[314595521,1708439450066,-150.0,0.00048399,7]
[314595522,1708439450075,-208.0,0.00048428,10]
[314595523,1708439450085,-150.0,0.00048431,7]
[314595524,1708439450095,-154.83518535,0.00048431,30]
[314595525,1708439450105,-200.0,0.00048444,10]
[314595526,1708439450114,-154.05474448,0.00048444,30]
[314595527,1708439450124,-1246.22687429,0.00048449,2]
[314595528,1708439450136,-248.42653558,0.0004845,4]
[314595529,1708439450146,-150.0,0.00048453,7]
[314595530,1708439450155,-905.22807506,0.00048464,24]
[314595531,1708439450164,-152.0852822,0.0004847,30]
[314595532,1708439450173,-163.96068284,0.00048477,30]
[314595533,1708439450183,-154.05474448,0.00048482,30]
[314595534,1708439450192,-150.0,0.00048485,7]
[314595535,1708439450201,-179.07391073,0.00048487,7]
[314595536,1708439450210,-500.0,0.00048492,6]
[314595537,1708439450219,-530.04,0.00048492,6]
[314595538,1708439450229,-500.0,0.00048493,6]
[314595539,1708439450238,-636.72,0.00048493,6]
[314595540,1708439450248,-526.56,0.00048493,6]
[314595541,1708439450257,-500.0,0.00048493,6]
[314595542,1708439450266,-341.74,0.00048493,6]
[314595543,1708439450276,-500.0,0.00048493,6]
[314595544,1708439450285,-500.0,0.00048493,6]
[314595545,1708439450295,-463.07,0.00048493,6]
[314595546,1708439450304,-500.0,0.00048493,6]
[314595547,1708439450313,-500.0,0.00048493,6]
[314595548,1708439450323,-705.23,0.00048493,6]
[314595549,1708439450332,-800.29,0.00048493,6]
[314595550,1708439450342,-500.0,0.00048493,6]
[314595551,1708439450351,-1528.55,0.00048493,6]
[314595552,1708439450361,-500.0,0.00048493,6]
[314595553,1708439450370,-500.0,0.00048493,6]
[314595554,1708439450382,-500.0,0.00048493,6]
[314595555,1708439450391,-626.92,0.00048493,6]
[314595556,1708439450401,-1196.86,0.00048493,6]
[314595557,1708439450411,-23567.46,0.00048493,6]
[314595558,1708439450420,-500.0,0.00048493,6]
[314595559,1708439450430,-500.0,0.00048493,6]
[314595560,1708439450440,-577.17,0.00048493,6]
[314595561,1708439450450,-630.9,0.00048493,6]
[314595562,1708439450459,-550.49,0.00048493,6]
[314595563,1708439450468,-2927.16,0.00048493,6]
[314595564,1708439450478,-500.0,0.00048493,6]
[314595565,1708439450487,-500.0,0.00048493,6]
[314595566,1708439450497,-500.0,0.00048493,6]
[314595567,1708439450507,-838.92,0.00048493,2]
[314595568,1708439450516,-300.0,0.00048493,2]
[314595569,1708439450525,-825.2,0.00048493,2]
[314595570,1708439450535,-152.0852822,0.00048503,30]
[314595571,1708439450545,-150.0971925,0.00048517,30]
[314595572,1708439450554,-150.0971925,0.00048523,30]
[314595573,1708439450564,-150.0,0.00048528,7]
[314595574,1708439450574,-150.04564581,0.00048532,30]
[314595575,1708439450584,-780.97,0.00048549,30]
[314595576,1708439450593,-780.97,0.00048549,30]
[314595577,1708439450603,-86391.7586755,0.0004855,11]
[314595578,1708439450614,-153090.5809154,0.0004856,2]
[314595579,1708439450624,-153.52419893,0.00048563,30]
[314595580,1708439450638,-150.0,0.00048573,7]
[314595581,1708439450647,-177.78639795,0.00048596,30]
[314595582,1708439450657,-150.0,0.00048604,7]
[314595583,1708439450667,-150.0,0.00048614,7]
[314595584,1708439450677,-1246.22687429,0.00048614,2]
[314595585,1708439450687,-1000.0,0.00048619,2]
[314595586,1708439450697,-150.0,0.00048635,7]
[314595587,1708439450706,-150.0,0.00048649,7]
[314595588,1708439450716,-150.0,0.00048653,7]
[314595589,1708439450863,-905.22807506,0.00048655,24]
[314595590,1708439450874,-1500.0,0.00048658,7]
[314595591,1708439450886,-158.08552473,0.00048659,30]
[314595592,1708439450897,-150.0,0.0004866,7]
[314595593,1708439450906,-150.0,0.00048668,7]
[314595594,1708439450916,-167.61786597,0.00048674,30]
[314595595,1708439450926,-1500.0,0.00048677,7]
[314595596,1708439450935,-182.14432098,0.00048691,7]
[314595597,1708439450945,-150.0,0.00048692,7]
[314595598,1708439450954,-1447.38716041,0.00048695,2]
[314595599,1708439450964,-150.0,0.00048696,7]
[314595600,1708439450978,-150.0,0.00048707,7]
[314595601,1708439450988,-150.0,0.00048734,7]
[314595602,1708439450997,-151.93088735,0.00048737,30]
[314595603,1708439451007,-190.4006,0.0004874,2]
[314595604,1708439451019,-418.56880264,0.00048756,10]
[314595605,1708439451029,-150.0,0.00048756,7]
[314595606,1708439451038,-163.06208563,0.00048757,30]
[314595607,1708439451048,-422.49211514,0.00048766,120]
[314595608,1708439451058,-500.0,0.00048766,6]
[314595609,1708439451068,-530.04,0.00048766,6]
[314595610,1708439451077,-150.0,0.00048766,7]
[314595611,1708439451087,-500.0,0.00048767,6]
[314595612,1708439451097,-636.72,0.00048767,6]
[314595613,1708439451106,-526.56,0.00048767,6]
[314595614,1708439451116,-500.0,0.00048767,6]
[314595615,1708439451125,-500.0,0.00048767,6]
[314595616,1708439451137,-500.0,0.00048767,6]
[314595617,1708439451146,-500.0,0.00048767,6]
[314595618,1708439451156,-500.0,0.00048767,6]
[314595619,1708439451166,-705.23,0.00048767,6]
[314595620,1708439451175,-800.29,0.00048767,6]
[314595621,1708439451185,-500.0,0.00048767,6]
[314595622,1708439451194,-1528.55,0.00048767,6]
[314595623,1708439451204,-500.0,0.00048767,6]
[314595624,1708439451216,-500.0,0.00048767,6]
[314595625,1708439451226,-500.0,0.00048767,6]
[314595626,1708439451235,-1196.86,0.00048767,6]
[314595627,1708439451245,-23567.46,0.00048767,6]
[314595628,1708439451254,-500.0,0.00048767,6]
[314595629,1708439451264,-500.0,0.00048767,6]
[314595630,1708439451274,-577.17,0.00048767,6]
[314595631,1708439451284,-550.49,0.00048767,6]
[314595632,1708439451294,-2927.16,0.00048767,6]
[314595633,1708439451305,-365.3,0.00048767,6]
[314595634,1708439451315,-500.0,0.00048767,6]
[314595635,1708439451326,-500.0,0.00048767,6]
[314595636,1708439451337,-150.0,0.00048777,7]
[314595637,1708439451347,-150.0,0.00048777,7]
[314595638,1708439451357,-300.0,0.0004878,7]
[314595639,1708439451366,-150.04564581,0.0004878,30]
[314595640,1708439451378,-169.57201142,0.00048791,30]
[314595641,1708439451393,-570.0,0.00048796,12]
[314595642,1708439451403,-154.09,0.000488,6]
[314595643,1708439451412,-261.29,0.000488,6]
[314595644,1708439451422,-261.29,0.000488,6]
[314595645,1708439451431,-261.29,0.000488,6]
[314595646,1708439451441,-261.29,0.000488,6]
[314595647,1708439451451,-261.29,0.000488,6]
[314595648,1708439451461,-261.29,0.000488,6]
[314595649,1708439451471,-261.29,0.000488,6]
[314595650,1708439451480,-261.29,0.000488,6]
[314595651,1708439451490,-261.29,0.000488,6]
[314595652,1708439451500,-261.29,0.000488,6]
[314595653,1708439451510,-261.29,0.000488,6]
[314595654,1708439451520,-261.29,0.000488,6]
[314595655,1708439451529,-261.29,0.000488,6]
[314595656,1708439451540,-261.29,0.000488,6]
[314595657,1708439451550,-261.29,0.000488,6]
[314595658,1708439451560,-261.29,0.000488,6]
[314595659,1708439451569,-261.29,0.000488,6]
[314595660,1708439451579,-261.29,0.000488,6]
[314595661,1708439451589,-261.29,0.000488,6]
[314595662,1708439451599,-261.29,0.000488,6]
[314595663,1708439451609,-155.18298927,0.00048809,30]
[314595664,1708439451618,-780.97,0.00048822,30]
[314595665,1708439451631,-780.97,0.00048822,30]
[314595666,1708439451641,-150.0,0.00048828,7]
[314595667,1708439451651,-153.32288769,0.00048831,40]
[314595668,1708439451661,-150.0,0.00048838,7]
[314595669,1708439451671,-177.16234947,0.00048845,2]
[314595670,1708439451681,-347.27270496,0.00048845,2]
[314595671,1708439451691,-905.22807506,0.00048845,25]
[314595672,1708439451701,-158.67750721,0.00048846,2]
[314595673,1708439451710,-150.0,0.00048851,7]
[314595674,1708439451720,-150.0,0.00048856,7]
[314595675,1708439451730,-150.0,0.00048869,7]
[314595676,1708439451739,-150.0,0.00048874,7]
[314595677,1708439451749,-490.65541726,0.00048874,30]
[314595678,1708439451759,-86391.7586755,0.00048884,11]
[314595679,1708439451768,-58954.24577875,0.00048898,120]
[314595680,1708439451778,-777.0,0.000489,120]
[314595681,1708439451788,-927.24122415,0.000489,10]
[314595682,1708439451798,-3000.0,0.00048904,44]
[314595683,1708439451808,-1500.0,0.00048905,7]
[314595684,1708439451817,-8229.2523916,0.0004891,2]
[314595685,1708439451827,-86391.7586755,0.00048911,11]
[314595686,1708439451837,-150.0,0.0004892,7]
[314595687,1708439451846,-150.0,0.00048932,7]
[314595688,1708439451856,-150.0,0.00048936,7]
[314595689,1708439451866,-350.28649824,0.00048938,7]
[314595690,1708439451875,-150.0,0.00048939,7]
[314595691,1708439451888,-245000.0,0.00048941,2]
[314595692,1708439451898,-1500.0,0.00048945,7]
[314595693,1708439451909,-150.0,0.00048946,7]
[314595694,1708439451919,-200.0,0.00048957,20]
[314595695,1708439451929,-800.0,0.00048957,20]
[314595696,1708439451939,-200.0,0.00048957,30]
[314595697,1708439451949,-200.0,0.00048957,30]
[314595698,1708439451959,-164.99375121,0.0004896,30]
[314595699,1708439451969,-153.6406607,0.00048977,30]
[314595700,1708439451980,-100000.0,0.00049,39]
[314595701,1708439451990,-500.0,0.00049,14]
[314595702,1708439452000,-985.63,0.00049,30]
[314595703,1708439452013,-255.40425517,0.00049,4]
[314595704,1708439452023,-3000.0,0.00049,90]
[314595705,1708439452033,-150.0,0.00049,26]
[314595706,1708439452043,-2674.69,0.00049,90]
[314595707,1708439452053,-1732.900761,0.00049,23]
[314595708,1708439452063,-7701.0,0.00049,120]
[314595709,1708439452073,-150.0,0.00049,45]
[314595710,1708439452082,-153.52419893,0.00049003,30]
[314595711,1708439452093,-150.0,0.00049006,7]
[314595712,1708439452103,-150.0,0.0004903,7]
[314595713,1708439452112,-905.22807506,0.00049036,25]
[314595714,1708439452122,-1500.0,0.00049039,7]
[314595715,1708439452134,-1000.0,0.0004904,60]
[314595716,1708439452143,-500.0,0.0004904,6]
[314595717,1708439452152,-530.04,0.0004904,6]
[314595718,1708439452162,-1213.70952032,0.00049041,4]
[314595719,1708439452171,-235.84931681,0.00049041,4]
[314595720,1708439452180,-2000.0,0.00049041,7]
[314595721,1708439452189,-200.0,0.00049041,7]
[314595722,1708439452198,-2000.0,0.00049041,7]
[314595723,1708439452207,-200.0,0.00049041,7]
[314595724,1708439452216,-500.0,0.00049041,6]
[314595725,1708439452226,-2000.0,0.00049041,7]
[314595726,1708439452236,-200.0,0.00049041,7]
[314595727,1708439452245,-636.72,0.00049041,6]
[314595728,1708439452255,-526.56,0.00049041,6]
[314595729,1708439452264,-500.0,0.00049041,6]
[314595730,1708439452273,-500.0,0.00049041,6]
[314595731,1708439452282,-500.0,0.00049041,6]
[314595732,1708439452292,-500.0,0.00049041,6]
[314595733,1708439452301,-500.0,0.00049041,6]
[314595734,1708439452310,-705.23,0.00049041,6]
[314595735,1708439452319,-800.29,0.00049041,6]
[314595736,1708439452328,-500.0,0.00049041,6]
[314595737,1708439452337,-1528.55,0.00049041,6]
[314595738,1708439452347,-500.0,0.00049041,6]
[314595739,1708439452356,-276.62196704,0.00049041,6]
[314595740,1708439452489,-223.37803296,0.00049041,6]
[314595741,1708439452499,-500.0,0.00049041,6]
[314595742,1708439452509,-1196.86,0.00049041,6]
[314595743,1708439452519,-11101.57036703,0.00049041,6]
[314595744,1708439452711,-230.39976759,0.00034518,4]
[314595745,1708439452721,-637.04,0.00046385,15]
[314595746,1708439452730,-500.0,0.00046575,6]
[314595747,1708439452740,-605.25,0.00046575,6]
[314595748,1708439452749,-500.0,0.00046849,6]
[314595749,1708439452759,-500.0,0.00047123,6]
[314595750,1708439452769,-284.78,0.00047397,6]
[314595751,1708439452779,-1000.26075809,0.00049041,6]
[314595752,1708439452790,-438.844,0.00049041,6]
[314595753,1708439452807,-11026.78487488,0.00049041,6]
[314595754,1708439452817,-500.0,0.00049041,6]
[314595755,1708439452826,-500.0,0.00049041,6]
[314595756,1708439452836,-577.17,0.00049041,6]
[314595757,1708439452845,-550.49,0.00049041,6]
[314595758,1708439452855,-2927.16,0.00049041,6]
[314595759,1708439452864,-563.84283998,0.00049041,6]
[314595760,1708439452874,-500.0,0.00049041,6]
[314595761,1708439452886,-150.0,0.00049062,7]
[314595762,1708439452895,-300.0,0.00049065,7]
[314595763,1708439452905,-150.0,0.00049067,7]
[314595764,1708439452915,-300.0,0.00049077,7]
[314595765,1708439452924,-1500.0,0.00049077,7]
[314595766,1708439452933,-150.0,0.00049078,7]
[314595767,1708439452943,-490.65541726,0.00049084,30]
[314595768,1708439452952,-780.97,0.00049096,30]
[314595769,1708439452961,-780.97,0.00049096,30]
[314595770,1708439452971,-150.0,0.00049099,7]
[314595771,1708439452981,-380.35,0.000491,7]
[314595772,1708439452991,-150.0,0.00049104,7]
[314595773,1708439453000,-155.58772599,0.00049109,30]
[314595774,1708439453013,-150.0,0.00049123,7]
[314595775,1708439453022,-150.0,0.00049124,7]
[314595776,1708439453031,-158.85879615,0.00049135,30]
[314595777,1708439453041,-150.0,0.00049155,7]
[314595778,1708439453050,-150.0,0.00049172,7]
[314595779,1708439453060,-150.0,0.00049184,7]
[314595780,1708439453069,-150.0,0.00049192,7]
[314595781,1708439453078,-1246.22687429,0.00049194,2]
[314595782,1708439453088,-155.58772599,0.00049197,30]
[314595783,1708439453098,-1524.56066699,0.00049199,7]
[314595784,1708439453107,-777.0,0.000492,120]
[314595785,1708439453116,-155.74813688,0.00049217,30]
[314595786,1708439453125,-177.11390007,0.0004922,30]
[314595787,1708439453136,-905.22807506,0.00049227,25]
[314595788,1708439453145,-1500.0,0.00049246,7]
[314595789,1708439453154,-150.0,0.0004926,7]
[314595790,1708439453163,-18786.71674886,0.00049264,10]
[314595791,1708439453173,-1447.38716041,0.00049268,2]
[314595792,1708439453182,-154.83518535,0.00049271,30]
[314595793,1708439453192,-150.0,0.00049272,7]
[314595794,1708439453201,-150.0,0.00049283,7]
[314595795,1708439453210,-150.04564581,0.00049288,30]
[314595796,1708439453220,-3127.48887448,0.000493,120]
[314595797,1708439453229,-245.70485559,0.00049305,2]
[314595798,1708439453238,-293.54309283,0.00049305,2]
[314595799,1708439453282,-500.0,0.00049314,6]
[314595800,1708439453291,-530.04,0.00049314,6]
[314595801,1708439453300,-1455.246754,0.00049315,30]
[314595802,1708439453309,-522.5849559,0.00049315,6]
[314595803,1708439453318,-131.1584576,0.00049315,6]
[314595804,1708439453330,-368.8415424,0.00049315,6]
[314595805,1708439453339,-645.83,0.00049315,6]
[314595806,1708439453348,-645.83,0.00049315,6]
[314595807,1708439453358,-645.83,0.00049315,6]
[314595808,1708439453367,-645.83,0.00049315,6]
[314595809,1708439453376,-645.83,0.00049315,6]
[314595810,1708439453386,-645.83,0.00049315,6]
[314595811,1708439453395,-645.83,0.00049315,6]
[314595812,1708439453405,-645.83,0.00049315,6]
[314595813,1708439453414,-645.83,0.00049315,6]
[314595814,1708439453424,-645.83,0.00049315,6]
[314595815,1708439453434,-645.83,0.00049315,6]
[314595816,1708439453444,-636.72,0.00049315,6]
[314595817,1708439453454,-526.56,0.00049315,6]
[314595818,1708439453464,-500.0,0.00049315,6]
[314595819,1708439453474,-500.0,0.00049315,6]
[314595820,1708439453483,-500.0,0.00049315,6]
[314595821,1708439453493,-500.0,0.00049315,6]
[314595822,1708439453502,-500.0,0.00049315,6]
[314595823,1708439453512,-705.23,0.00049315,6]
[314595824,1708439453521,-800.29,0.00049315,6]
[314595825,1708439453530,-500.0,0.00049315,6]
[314595826,1708439453539,-1528.55,0.00049315,6]
[314595827,1708439453548,-500.0,0.00049315,6]
[314595828,1708439453558,-500.0,0.00049315,6]
[314595829,1708439453567,-500.0,0.00049315,6]
[314595830,1708439453577,-1196.86,0.00049315,6]
[314595831,1708439453586,-23567.46,0.00049315,6]
[314595832,1708439453595,-500.0,0.00049315,6]
[314595833,1708439453604,-500.0,0.00049315,6]
[314595834,1708439453614,-577.17,0.00049315,6]
[314595835,1708439453623,-550.49,0.00049315,6]
[314595836,1708439453636,-2927.16,0.00049315,6]
[314595837,1708439453646,-213.45,0.00049315,6]
[314595838,1708439453655,-490.65541726,0.00049318,30]
[314595839,1708439453664,-300.0,0.00049321,7]
[314595840,1708439453674,-154.05474448,0.00049322,30]
[314595841,1708439453684,-150.04564581,0.00049328,30]
[314595842,1708439453694,-150.0,0.00049332,7]
[314595843,1708439453703,-150.0,0.00049332,7]
[314595844,1708439453713,-150.0,0.00049335,7]
[314595845,1708439453723,-300.0,0.00049335,7]
[314595846,1708439453733,-150.0,0.00049337,7]
[314595847,1708439453742,-1500.0,0.0004935,7]
[314595848,1708439453751,-150.0,0.00049353,7]
[314595849,1708439453761,-153.32288752,0.00049356,42]
[314595850,1708439453770,-1500.0,0.00049364,7]
[314595851,1708439453780,-780.97,0.00049369,30]
[314595852,1708439453790,-780.97,0.00049369,30]
[314595853,1708439453799,-153.52419893,0.00049374,30]
[314595854,1708439453808,-208.0,0.00049392,14]
[314595855,1708439453817,-263.86405763,0.00049392,7]
[314595856,1708439453826,-201.0,0.00049402,28]
[314595857,1708439453836,-905.22807506,0.00049418,25]
[314595858,1708439453847,-1500.0,0.00049436,7]
[314595859,1708439453857,-311.05124246,0.00049438,7]
[314595860,1708439453866,-153.6406607,0.00049449,30]
[314595861,1708439453875,-1246.22687429,0.00049453,2]
[314595862,1708439453888,-1500.0,0.00049464,7]
[314595863,1708439453897,-150.0,0.00049472,7]
[314595864,1708439453907,-150.0,0.00049476,7]
[314595865,1708439453917,-150.0,0.0004948,7]
[314595866,1708439453930,-150.0,0.00049481,7]
[314595867,1708439453941,-158.08552474,0.00049488,30]
[314595868,1708439453950,-95962.34941709,0.000495,31]
[314595869,1708439453963,-707.43204013,0.000495,31]
[314595870,1708439453976,-5934.94999999,0.000495,31]
[314595871,1708439453988,-521.0101577,0.000495,31]
[314595872,1708439453999,-964.89999992,0.000495,31]
[314595873,1708439454013,-716.1,0.000495,31]
[314595874,1708439454151,-500.0,0.00046575,6]
[314595875,1708439454160,-596232.37785491,0.000495,31]
[314595879,1708439895514,-615.13824104,0.00024999,2]
[314595880,1708439895535,-750.0,0.00025,3]
[314595881,1708439896395,250.50057331,0.00024998,2]
[314595882,1708439953458,278.00310111,0.00024998,2]
[314595883,1708439971455,185.33540074,0.00024998,2]
[314595884,1708439981274,2611.01980214,0.00024998,2]
[314595885,1708439990181,-155.0,0.00024998,2]
[314595886,1708439995289,2611.01980214,0.00024998,2]
[314595887,1708440007466,155.0,0.00024998,2]
[314595888,1708440011293,2611.01980214,0.00024998,2]
[314595890,1708440027459,155.0,0.00024998,2]
[314595891,1708440033278,2190.04923904,0.00024998,2]
[314595892,1708440047492,155.0,0.00024998,2]
[314595893,1708440067522,155.0,0.00024998,2]
[314595894,1708440087514,306.12317101,0.00024998,2]
[314595895,1708440096219,-544.0,0.00027,3]
[314595896,1708440100431,-256.0,0.00027,3]
[314595897,1708440200453,782.0,0.0002701,120]
[314595915,1708440631557,-250.50057331,0.00028884,2]
[314595916,1708440631567,-155.0,0.00028885,3]
[314595917,1708440631576,-615.13824104,0.00028889,2]
[314595918,1708440631586,-656.06452058,0.00028891,2]
[314595919,1708440631594,-155.0,0.00028894,2]
[314595920,1708440631603,-1512.8327,0.000289,2]
[314595923,1708440631613,-850.0,0.00029,3]
[314595926,1708440631623,-385.87,0.00030662,2]
[314595928,1708440631633,-2000.0,0.00030943,2]
[314595929,1708440631643,-500.0,0.00030998,2]
[314595930,1708440631653,-1110.22,0.00030998,2]
[314595931,1708440631662,-900.0,0.00031,3]
[314595932,1708440631671,-150.0,0.00031329,2]
[314595933,1708440631681,-878.06,0.00031339,2]
[314595934,1708440631691,-212.38,0.00031339,2]
[314595935,1708440631700,-62.81232507,0.0003141,2]
[314595936,1708440631715,-340.4359208,0.0003141,2]
[314595937,1708440631748,-484.38116034,0.0003141,2]
[314595938,1708440631760,-3245.54059379,0.0003141,2]
[314595939,1708440631769,-320.77,0.00031545,2]
[314595940,1708440631782,-228.92,0.00031564,2]
[314595941,1708440631792,-264.9,0.00031623,2]
[314595942,1708440631802,-228.92,0.00031651,2]
[314595943,1708440631811,-9540.80865981,0.00031706,2]
[314595944,1708440631823,-6520.375,0.00031706,2]
[314595945,1708440631870,-1679.06194262,0.00031706,2]
[314595946,1708440631963,-2168.70815791,0.00031706,2]
[314595947,1708440631995,-1050.13711486,0.00031706,2]
[314595949,1708440632008,-2088.29214959,0.00031706,2]
[314595951,1708440632019,-852.61697521,0.00031706,2]
[314595953,1708440632031,-250.0,0.00031706,2]
[314595954,1708440632041,-228.92,0.00031738,2]
[314595957,1708440632050,-228.92,0.00031824,2]
[314595959,1708440632060,-228.92,0.00031911,2]
[314595961,1708440632070,-228.92,0.00031997,2]
[314595963,1708440632079,-228.92,0.00032084,2]
[314595964,1708440632089,-161.86,0.000321,2]
[314595966,1708440632099,-228.92,0.0003217,2]
[314595968,1708440632108,-160.4,0.00032225,2]
[314595970,1708440632117,-151.60302479,0.00032241,5]
[314595973,1708440632131,-194.50915671,0.00032241,5]
[314595975,1708440632141,-477.03863192,0.00032241,2]
[314595977,1708440632150,-228.92,0.00032257,2]
[314595979,1708440632160,-1693.80149393,0.00032329,2]
[314595984,1708440637583,-499.41906507,0.00032329,2]
[314595987,1708440637595,-250.0,0.00032329,2]
[314595989,1708440637607,-880.71405033,0.00032329,2]
[314595991,1708440637619,-6360.16713435,0.00032329,2]
[314595992,1708440637629,-595.74500894,0.00032331,2]
[314595993,1708440637641,-1825.28042698,0.00032331,2]
[314595994,1708440637652,-1000.0,0.00032334,2]
[314595995,1708440637661,-691.95,0.00032334,2]
[314595996,1708440637671,-150.0,0.00032338,2]
[314595997,1708440637682,-337.10642534,0.00032339,2]
[314595998,1708440637693,-877.23777284,0.00032339,2]
[314595999,1708440637706,-1004.01266038,0.00032339,2]
[314596000,1708440637718,-373.48115516,0.00032339,2]
[314596001,1708440638006,-16522.3184576,0.00032339,2]
[314596002,1708440638018,-7800.74295,0.00032339,2]
[314596003,1708440638036,-409105.85429938,0.00032339,2]
[314596004,1708440638045,-622.67,0.00032341,2]
[314596005,1708440638055,-32147.0,0.00032341,2]
[314596006,1708440638064,-228.92,0.00032344,2]
[314596007,1708440638073,-228.92,0.0003243,2]
[314596008,1708440638082,-250.0,0.00032486,2]
[314596009,1708440638091,-228.92,0.00032517,2]
[314596010,1708440638100,-150.0,0.00032551,2]
[314596011,1708440638109,-228.92,0.00032603,2]
[314596012,1708440638118,-228.92,0.0003269,2]
[314596013,1708440638127,-807.00847864,0.00032697,3]
[314596014,1708440638136,-8279.29,0.00032707,2]
[314596015,1708440638145,-228.92,0.00032776,2]
[314596016,1708440638154,-228.92,0.00032863,2]
[314596017,1708440638163,-689.96789333,0.00032877,4]
[314596018,1708440638172,-158.68733729,0.000329,2]
[314596019,1708440638184,-385.87,0.00032926,2]
[314596020,1708440638194,-228.92,0.0003295,2]
[314596021,1708440638204,-950.0,0.00033,3]
[314596022,1708440638214,-228.92,0.00033036,2]
[314596023,1708440638223,-228.92,0.00033123,2]
[314596024,1708440638233,-320.77,0.00033189,2]
[314596025,1708440638242,-228.92,0.00033209,2]
[314596026,1708440638252,-824.93,0.00033308,2]
[314596027,1708440638261,-807.00847864,0.00033312,4]
[314596028,1708440638272,-197.16,0.00033347,2]
[314596029,1708440638285,-314.08,0.00033519,2]
[314596030,1708440638294,-2960.25,0.00033519,2]
[314596031,1708440638304,-807.00847864,0.00033549,4]
[314596032,1708440638314,-8111.0898,0.00033559,2]
[314596033,1708440638323,-25805.55262665,0.00033648,2]
[314596034,1708440638332,-282.24373918,0.000337,20]
[314596035,1708440638342,-182.91,0.00033769,2]
[314596036,1708440638355,-499.99,0.00033859,2]
[314596037,1708440638364,-2756.1,0.00033936,2]
[314596038,1708440638373,-158.6873372,0.00034028,2]
[314596039,1708440638382,-1302.4329,0.00034419,2]
[314596040,1708440638393,-153.47506137,0.00034509,2]